Cogmind - Beta 15 @@@ ROGUE MODE // 2025.07.31 @ 17:17:18 Player: winnking222 Result: Destroyed by RA-HUG(R) with Subdweller Machine Gun Performance ------------- Evolutions (0) 0 Regions Visited (2) 400 Robots Destroyed (25) 125 Value Destroyed (530) 530 Prototype IDs (2) 40 Alien Tech Used (0) 0 Bonus (-18) -18 TOTAL SCORE: 1077 Bonus ------- Friendly Fire -18 Cogmind --------- Core Integrity 0/250 Matter 228/300 Energy 14/100 System Corruption 0% Temperature Cool (0) Movement Core (450) Ox8 Location -10/Subcaves Parts ------- > --- POWER (1) -------- (None) > --- PROPULSION (2) --- (None) > --- UTILITY (2) ------ Improved Heat Sink Large Storage Unit > --- WEAPON (2) ------- Subdweller Laser > --- INVENTORY (15) --- Light Treads Seismic Detector Seismic Detector EM Pulse Gun Beam Cannon Assault Rifle Light Assault Rifle Light Assault Rifle Light Assault Rifle Heavy Assault Rifle Peak State ------------ > --- POWER ------------ (None) > --- PROPULSION ------- Wheel Subdweller Monowheel > --- UTILITY ---------- Improved Heat Sink Large Storage Unit > --- WEAPON ----------- Subdweller Laser Battle Cannon > --- INVENTORY -------- Light Treads Seismic Detector Seismic Detector EM Pulse Gun Beam Cannon Assault Rifle Light Assault Rifle Light Assault Rifle Light Assault Rifle Heavy Assault Rifle [Rating: 12] Favorites ----------- Power Light Ion Engine Engine Light Ion Engine Propulsion Light Treads Treads Light Treads Wheel Wheel Utility Large Storage Unit Device Seismic Detector Storage Large Storage Unit Protection Light Armor Plating Weapon Assault Rifle Energy Gun EM Pulse Gun Energy Cannon Beam Cannon Ballistic Gun Assault Rifle Ballistic Cannon Battle Cannon Build | -11 -10 -10 ------- Run | Yrd Mat Sub Slots Evolved . | . . . Power . | . . . Propulsion . | . . . Utility . | . . . Weapon . | . . . Parts Attached 21 | 7 6 8 Power 1 | 1 . . Engine 1 | 1 . . Core . | . . . Reactor . | . . . Propulsion 4 | 2 . 2 Treads 2 | 2 . . Leg . | . . . Wheel 2 | . . 2 Hover . | . . . Flight . | . . . Utility 7 | 2 4 1 Device 3 | 1 1 1 Storage 2 | 1 1 . Processor . | . . . Hackware . | . . . Protection 2 | . 2 . Artifact . | . . . Weapon 9 | 2 2 5 Energy Gun 3 | . . 3 Energy Cannon 1 | . 1 . Ballistic Gun 4 | 2 1 1 Ballistic Cannon 1 | . . 1 Launcher . | . . . Special Weapon . | . . . Impact Weapon . | . . . Slashing Weapon . | . . . Piercing Weapon . | . . . Special Melee Weapon . | . . . Unidentified Prototypes . | . . . Parts Lost 9 | . . 9 Power 1 | . . 1 Propulsion 3 | . . 3 Utility 2 | . . 2 Weapon 3 | . . 3 Highest Loss Streak 5 | . . 5 To Critical Strikes 1 | . . 1 Average Backups 7 | 2 7 10 Power . | . . . Propulsion . | 1 1 . Utility 2 | . 2 3 Weapon 3 | 1 3 5 Tool/Special . | . . . Unused Backups 3 | . . 3 Power . | . . . Propulsion . | . . . Utility . | . . . Weapon 3 | . . 3 Tool/Special . | . . . Average Slot Usage (%) 94 | . 100 85 Engine 10 | . 14 2 Treads 21 | . 28 9 Wheel 5 | . . 16 Device 9 | . 12 3 Storage 14 | . 14 14 Protection 4 | . 1 10 Energy Gun 4 | . . 12 Energy Cannon 1 | . 1 3 Ballistic Gun 21 | . 26 10 Peak Build Rating 12 | 7 8 12 Average Rating 7 | 5 7 8 On Entrance 5 | . 7 8 Naked Turns . | . . . Heaviest Build 31 | 12 29 31 Greatest Support 40 | 40 40 40 Greatest Overweight (x) 2 | 1 . 2 Average Overweight (x) . | . . 1 Largest Inventory Capacity 15 | 8 15 15 Average Capacity 12 | 7 12 15 Most Carried 13 | 7 10 13 Average Carried 7 | 2 7 10 Final Capacity 15 | 8 15 15 Final Carried 10 | 3 10 10 Class Distribution -------------------- 100% | Mutant Dominant Class ---------------- Mutant | -10/Materials Mutant | -10/Subcaves Resources | -11 -10 -10 ----------- Run | Yrd Mat Sub Matter Collected 693 | 386 191 116 Remotely . | . . . Salvage Created 788 | 240 299 249 Parts 52 | 22 17 13 Haulers Intercepted . | . . . Recyclers Shooed . | . . . Parts Field Recycled . | . . . Retrieved Matter . | . . . Parts Self-Destructed 4 | . . 4 Prevented . | . . . Kills | -11 -10 -10 ------- Run | Yrd Mat Sub Combat Hostiles Destroyed 14 | . 8 6 Guns 9 | . 7 2 Cannons 3 | . 1 2 Classes Destroyed 8 | 3 3 2 Worker 1 | 1 . . Tunneler 8 | 8 . . Recycler 1 | 1 . . Watcher 1 | . 1 . Swarmer 4 | . 3 1 Grunt 5 | . 5 . Sentry 1 | . . 1 Subdweller 4 | . . 4 Best Kill Streak 3 | 3 3 2 Combat Bots Only 3 | . 3 2 Max Kills in Single Turn 1 | 1 1 1 Gunslinging . | . . . Exploded . | . . . Melee . | . . . Uniques/NPCs Destroyed . | . . . Combat | -11 -10 -10 -------- Run | Yrd Mat Sub Hostile Shots Fired 107 | . 35 72 Missed 29 | . 8 21 Hits 78 | . 27 51 Projectile 78 | . 27 51 Critical Strikes 2 | . . 2 Damage Taken 1318 | . 273 1045 Core 254 | . 53 201 Absorbed by Shields . | . . . Core Remaining (%) 100 | 100 . . Volleys Fired 104 | 29 30 45 Largest 2 | 2 2 2 Hottest 100 | 40 80 100 Shots Fired 204 | 58 60 86 Gun 177 | 58 51 68 Cannon 27 | . 9 18 Launcher . | . . . Special . | . . . Kinetic 137 | 58 51 28 Thermal 31 | . 9 22 Explosive . | . . . Electromagnetic 36 | . . 36 Robot Hit Streak 19 | 6 8 19 Robot Miss Streak 5 | 5 3 2 Penetration Max . | . . . Secondary Targets 1 | . 1 . Max Gunslinging Chain 1 | . 1 . Shots Hit Robots 132 | 30 36 66 Core Hits 39 | 13 13 13 Critical Kills . | . . . Critical Parts Destroyed . | . . . Critical Strikes 2 | . . 2 Corrupt 2 | . . 2 Melee Attacks . | . . . Impact . | . . . Slashing . | . . . Piercing . | . . . Sneak Attacks . | . . . Combat Hostiles . | . . . Follow-up Attacks . | . . . Damage Inflicted 1649 | 355 433 861 Guns 1349 | 355 309 685 Cannons 299 | . 123 176 Explosions . | . . . Melee . | . . . Ramming 1 | . 1 . Kinetic 970 | 355 309 306 Thermal 381 | . 123 258 Explosive . | . . . Electromagnetic 297 | . . 297 Impact . | . . . Slashing . | . . . Piercing . | . . . Highest Corruption . | . . . Average Corruption . | . . . Corruption Purged . | . . . Corruption Blocked . | . . . Overload Shots . | . . . Overflow Damage . | . . . Projectiles . | . . . Explosions . | . . . Melee . | . . . Knockbacks 2 | . . 2 Impact . | . . . Kinetic 2 | . . 2 Secondary . | . . . Self-Inflicted Damage . | . . . Shots . | . . . Rammed 1 | . 1 . Targets Rammed 1 | . 1 . Kicked . | . . . Crushed . | . . . Highest Temperature 126 | . 126 . Average Temperature 32 | . 32 . Received Heat Transfer 258 | . 87 171 Siege Activations . | . . . Martial Activations . | . . . Shielding Activations . | . . . Robots Disrupted . | . . . Combat Hostiles . | . . . Robots Corrupted 2 | . . 2 Combat Hostiles 2 | . . 2 Parts Fried 1 | . . 1 Impact Corruptions . | . . . Robots Melted . | . . . Combat Hostiles . | . . . Parts Melted . | . . . Heat Transferred 596 | . 259 337 Parts Sabotaged . | . . . Parts Stolen . | . . . Parts Stripped . | . . . Power Chain Reactions . | . . . Alert | -11 -10 -10 ------- Run | Yrd Mat Sub Maximum Alert Level . | . . . Low Security (%) 100 | 100 100 . Level 1 . | . . . Level 2 . | . . . Level 3 . | . . . Level 4 . | . . . Level 5 . | . . . High Security . | . . . Max Security . | . . . Peak Influence 149 | 10 149 . Initial 3 | . 3 . Average 21 | 1 29 . Influence Increases 348 | 50 258 40 Destroy 0b10 Robot/C 200 | . 160 40 Destroy 0b10 Robot/NC 55 | 50 5 . Destroy Leader 42 | . 42 . Successful Hack 5 | . 5 . Disable Machine 15 | . 15 . Destroy Structure 1 | . 1 . Lose Combat Pursuer 30 | . 30 . Influence Decreases 348 | 45 130 173 Entered New Map 67 | . 2 65 Time Decay 251 | 45 128 78 Lost Part 30 | . . 30 Squads Dispatched 1 | . 1 . Investigation . | . . . Extermination . | . . . Reinforcement 1 | . 1 . Assault . | . . . Garrison . | . . . Intercept . | . . . Searches Triggered . | . . . Construction Impeded . | . . . Haulers Reinforced . | . . . Active Scanning Responses . | . . . Cargo Convoy Interrupts . | . . . Stealth | -11 -10 -10 --------- Run | Yrd Mat Sub Distress Signals 3 | . 3 . Communications Jammed . | . . . Distress Signals . | . . . Times Spotted 21 | . 14 7 Peak Tracking Total 6 | . 6 2 Tactical Retreats 1 | . 1 . Traps | -11 -10 -10 ------- Run | Yrd Mat Sub Traps Triggered . | . . . Indirectly . | . . . Trap Hack Attempts . | . . . Triggered . | . . . Disarmed . | . . . Reprogrammed . | . . . Reused . | . . . Traps Extracted . | . . . Installed . | . . . Triggered . | . . . Machines | -11 -10 -10 ---------- Run | Yrd Mat Sub Machines Disabled 1 | . 1 . Max in Single Turn 1 | . 1 . Machines Repaired . | . . . Machines Dismantled . | . . . Machines Sabotaged . | . . . Overloaded Fab Kills . | . . . Hacking | -11 -10 -10 --------- Run | Yrd Mat Sub Machines Accessed 3 | . 3 . Terminals 3 | . 3 . Fabricators . | . . . Repair Stations . | . . . Recycling Units . | . . . Scanalyzers . | . . . Garrison Access . | . . . Total Hacks 6 | . 6 . Successful 4 | . 4 . Failed 2 | . 2 . Catastrophic . | . . . Database Lockouts . | . . . Manual . | . . . Terminals 6 | . 6 . Fabricators . | . . . Repair Stations . | . . . Recycling Units . | . . . Scanalyzers . | . . . Garrison Access . | . . . Terminal Hacks 4 | . 4 . Prototype ID Bank 1 | . 1 . Zone Layout 3 | . 3 . Fabricator Hacks . | . . . Repair Station Hacks . | . . . Recycling Unit Hacks . | . . . Scanalyzer . | . . . Garrison Access Hacks . | . . . Unauthorized Hacks . | . . . Terminals . | . . . Fabricators . | . . . Repair Stations . | . . . Recycling Units . | . . . Scanalyzers . | . . . Garrison Access . | . . . Data Cores Recovered . | . . . Used . | . . . Hacking Detections . | . . . Full Trace Events . | . . . Feedback Events . | . . . Feedback Blocked . | . . . Robot Schematics Acquired . | . . . Robots Built . | . . . Authchips . | . . . Time . | . . . Total Robot Build Rating . | . . . Part Schematics Acquired . | . . . Parts Built . | . . . Authchips . | . . . Time . | . . . Total Part Build Rating . | . . . Parts Repaired . | . . . Time . | . . . Parts Recycled . | . . . Recycled Matter . | . . . Retrieved Matter . | . . . Retrieved Components . | . . . Parts Scanalyzed . | . . . Part Schematics Acquired . | . . . Parts Damaged . | . . . Bothacking | -11 -10 -10 ------------ Run | Yrd Mat Sub Used RIF Installer . | . . . Robots Hacked . | . . . Non-combat . | . . . Combat . | . . . Robot Hacks Applied . | . . . Relay Couplers Released . | . . . Fabnet Peak Effective % . | . . . Robots Rewired . | . . . Allies Hacked . | . . . Hacks Repelled . | . . . Allies | -11 -10 -10 -------- Run | Yrd Mat Sub Total Allies . | . . . Largest Group . | . . . Highest-Rated Group . | . . . Highest-Rated Ally . | . . . Total Orders . | . . . Ally Attacks . | . . . Total Damage . | . . . Kills . | . . . Allies Corrupted . | . . . Allies Melted . | . . . Intel | -11 -10 -10 ------- Run | Yrd Mat Sub Active Infowar (turns) 774 | 93 642 39 Seismic 774 | 93 642 39 Robot Analysis Total . | . . . Derelict Logs Recovered . | . . . Drone Launches . | . . . Drone Recoveries . | . . . Exploration | -11 -10 -10 ------------- Run | Yrd Mat Sub Turns Passed 1386 | 276 729 381 Spaces Moved 662 | 117 372 173 Core 17 | 17 . . Treads 488 | 100 372 16 Legs . | . . . Wheels 157 | . . 157 Hover . | . . . Flight . | . . . Fastest Speed 50 | 50 160 95 Average Speed 144 | 145 160 110 Slowest Speed 160 | 160 160 160 Overloaded Moves . | . . . Propulsion Burnouts . | . . . Robots Hopped . | . . . Potential Cave-ins . | . . . Cave-ins Triggered . | . . . Exploration Rate (%) 29 | 5 69 15 Regions Visited 2 Branch Regions 1 Pre-discovered Areas . | . . . Known Exits Taken . | . . . Unknown Exits Taken 2 | 1 1 . Scrap Searched 2 | . . 2 Spaces Dug . | . . . Terrain Destroyed . | . . . Melee . | . . . Projectile . | . . . AOE . | . . . Terrain Rammed . | . . . Walls Destroyed . | . . . Machines Disabled . | . . . Actions | -11 -10 -10 --------- Run | Yrd Mat Sub Total 890 | 170 446 274 Wait 72 | 9 27 36 Move 660 | 116 371 173 Hop . | . . . Pick Up 23 | 9 8 6 Fast Attach 1 | 1 . . Attach 11 | 6 . 5 Detach . | . . . Swap 16 | . 8 8 Drop 2 | . 1 1 Fire 104 | 29 30 45 Melee . | . . . Ram . | . . . Kick . | . . . Crush 1 | . 1 . Escape Stasis . | . . . Rewire . | . . . Trap . | . . . Miscellaneous . | . . . Route ------- -11/Scrapyard -10/Materials (discovered 5 exits: [Mat x2] / [*Min x2] / [*Sub]) -10/Subcaves History --------- Turn | Location | Event 14 | -11/Scrapyard | Discovered new exit (range 15) 277 | -11/Scrapyard | Entered Materials 316 | -10/Materials | Build established: Mutant 436 | -10/Materials | Discovered new exit (range 6) 536 | -10/Materials | Discovered new exit (range 13) 719 | -10/Materials | Discovered new exit (range 12) 898 | -10/Materials | Discovered new exit (range 13) 992 | -10/Materials | Discovered new exit (range 10) 1006 | -10/Materials | Entered Subcaves 1007 | -10/Subcaves | Approached by a straggling Scientist 1018 | -10/Subcaves | Ambushed by Subdwellers from Twisted Machinery 1099 | -10/Subcaves | Lost 3 parts (1p1n1w) 1155 | -10/Subcaves | Core integrity fell below 50% 1376 | -10/Subcaves | Core integrity fell below 20% 1387 | -10/Subcaves | Destroyed by RA-HUG(R) with Subdweller Machine Gun Last Messages --------------- 01278_ Acquired Sub. Laser. 01280_ Acquired Battle Cannon. 01281_ Searching scrap... 01281_ Found Sub. Machine Gun. 01281_ Found 59 Matter. 01283_ Acquired Sub. Machine Gun. 01290_ Dropped Corrupted Sub. Laser. 01294_ Subatomizers dissect the Corrupted Disposable Heat Sink. 05-HJ9(c): "I think it's somewhere west of here" 01318_ NX-F71(R) emerges from the Twisted Machinery. 01330_ Sub. Machine Gun destroyed. 01341_ NX-F71(R) knocked back. 01343_ Lgt. Armor Plating destroyed. 01344_ NX-F71(R) destroyed. 01361_ Sub. Monowheel destroyed. 01362_ RA-HUG(R) knocked back. 05-HJ9(c): "I think it's somewhere west of here" 01371_ Destroyed Scrap Shield. 01373_ Battle Cannon destroyed. 01381_ Wheel destroyed. Map ----- +----------------------------------------------------+ | ????????????????????????# ## ##?????#??? ???? | | ????????????????????????# ## ######????????? | | ????????????????????##### # #????????? | | ????????????????##### # ### #????????? | | ????????????????#"%## #### #?????????? | | ????????????????# ### # ##?????????? | | ????????????????#%##"#![ #??????????? | | ????????????????# # !%& ##?????????? | | ????????????????#" ##" # #?????????? | | ????????????????######## ###### #?????????? | | ???????????????????????## #????# ##?????????? | | ????????????????????????## #????# ##??????????? | | ?????????????????????????####????## #???????????? | | ???????????????????????????# ####?# ###?????????? | | ???????????????????????????# #?# "" #?????????? | | ???????????????????????????# ### " ##????????? | | ???????????????????????????# ## """ #????????? | | ???????????????????????????# """" "?????? | | ???????????????????????????# """"" " ????? | | ???????????????????????????## "" " ????? | | ????????????????????????????### "" ""#????? | | ????????????????????????????### " ###????? | | ???????????????????????????## " ##??????? | | ???????????????????????##?## c R %% #???????? | | ??????????????????????## ## % ! #??????? | | ??????????????????????# @ ?????? | | ??????????????????????# " " ? ????? | | ??????????????????????### #; " "???????? | | ????????????????????????##### ##### " " ???????? | | ????????????????????????????# #???? " ????????? | | ????????????????????????????# #???? ????????? | | ????????????????????????????# ???? ?????????? | | ????????????????????????????# ## ?????????????? | | ????????????????????????????####? ???????????? | | ?????????????????????????????????## ???????????? | | ???????????????????????????????????# #??????????? | | ???????????????????????????????????? #??????????? | | ?????????????????????????????????????????????????? | | ?????????????????????????????????????????????????? | | ?????????????????????????????????????????????????? | | ?????????????????????????????????????????????????? | | ?????????????????????????????????????????????????? | | ?????????????????????????????????????????????????? | | ?????????????????????????????????????????????????? | | ?????????????????????????????????????????????????? | | ?????????????????????????????????????????????????? | | ?????????????????????????????????????????????????? | | ?????????????????????????????????????????????????? | | ?????????????????????????????????????????????????? | | ?????????????????????????????????????????????????? | +----------------------------------------------------+ Best States ------------- Heat Dissipation 39 Energy Generation 10 Energy Capacity 125 Matter Stores 300 Matter Capacity 300 Sight Range 16 Terrain Scan Density 10 Armor Coverage 150 Evasion (%) 50 Recoil Reduction 2 Item Schematics ----------------- None Robot Schematics ------------------ None Fabricated ------------ Nothing Repaired ---------- Nothing Alien Tech Used ----------------- None Achievements -------------- None Challenges ------------ None Game ------ Seed DecoderHypercooledExpander Manual? 0 Play Time 00:13:23 Cumulative 111.7 hours Start 2025.07.31 @ 17:07:16 End 2025.07.31 @ 17:17:18 Sessions 1 Manual Loads 0 Difficulty Rogue Special Mode None Game No. 171 Rogue 171 Adventurer 0 Explorer 0 Win Type - Total 1 Types 1/0/0/0/0/0/0/0/0/0 Lore% 67 Gallery% 58 Achievement% 50 Wizard Run 0 Options --------- Layout 0 ASCII 0 Keyboard 0 Movement Mouse Keybinds 0 Fullscreen 1 Font 16/SmallcapsGlow Map View 75x55 Zoom Use 0% Tactical HUD 1 Map Filters NONE Filters NONE Steam 1 RUN: 8ed2208c-247c-4062-8e50-58cbdfcd81ed